bitfinex/quotes_SOLUSD_20240925
["timestamp","ask_amount","ask_price","bid_price","bid_amount"]
[1727267642284,6.94586332,150.35,150.32,10.84143364]
[1727267642473,6.94586332,150.35,150.32,17.49383364]
[1727267642672,6.6508,150.36,150.32,17.49383364]
[1727267642673,7.8512664,150.36,150.32,17.49383364]
[1727267643382,6.6508,150.36,150.32,17.49383364]
[1727267644198,1.2004664,150.35,150.32,10.84143364]
[1727267644379,7.8515664,150.35,150.32,10.84143364]
[1727267645085,6.6511,150.35,150.32,10.84143364]
[1727267646405,6.6511,150.35,150.31,6.6527]
[1727267646585,6.6511,150.35,150.31,17.49413364]
[1727267647094,6.6511,150.35,150.32,10.84143364]
[1727267650513,6.6511,150.35,150.31,6.6527]
[1727267651891,6.6511,150.35,150.3,27.47443364]
[1727267651892,7.8521664,150.34,150.3,23.2862]
[1727267652409,30.429084,150.33,150.3,16.633]
[1727267652800,30.429084,150.33,150.29,6.6537]
[1727267653108,30.429084,150.33,150.28,17.49553364]
[1727267653289,1.2004664,150.32,150.28,17.49553364]
[1727267653611,30.429084,150.33,150.29,1.33062591]
[1727267653909,30.429084,150.33,150.28,17.49553364]
[1727267654320,23.776884,150.33,150.28,6.6541]
[1727267654519,7.8529664,150.32,150.28,6.6541]
[1727267656629,6.6525,150.32,150.28,7.98472245]
[1727267657216,6.6525,150.32,150.28,6.6541]
[1727267658098,1.2004664,150.31,150.28,6.6541]
[1727267659014,6.6525,150.32,150.28,6.6541]
[1727267659402,7.8529664,150.32,150.28,6.6541]
[1727267662113,30.429784,150.31,150.27,34.44605534]
[1727267664521,30.429784,150.31,150.27,23.6046217]
[1727267664825,30.429784,150.31,150.27,34.44605534]
[1727267665127,23.776884,150.31,150.28,6.6541]
[1727267665420,23.776884,150.31,150.27,27.79155534]
[1727267665421,6.652,150.33,150.29,17.49493364]
[1727267665622,6.652,150.33,150.3,6.6532]
[1727267668224,1.2004664,150.35,150.3,6.6532]
[1727267668416,30.428584,150.34,150.3,6.6532]
[1727267668627,6.6517,150.34,150.3,6.6532]
[1727267671035,6.6521,150.33,150.29,7.98415432]
[1727267671213,6.6519,150.34,150.3,6.6533]
[1727267671617,6.6519,150.34,150.3,17.49473364]
[1727267673242,13.5969218,150.36,150.32,17.49373364]
[1727267673532,6.6507,150.36,150.32,17.49373364]
[1727267674615,6.652,150.33,150.3,16.633]
[1727267675336,1.2004664,150.35,150.3,16.633]
[1727267675508,30.428584,150.34,150.3,16.633]
[1727267676132,7.8524664,150.33,150.3,16.633]
[1727267676835,6.652,150.33,150.3,16.633]
[1727267678914,7.8524664,150.33,150.3,16.633]
[1727267679615,6.652,150.33,150.3,16.633]
[1727267680924,6.6516,150.34,150.3,23.2862]
[1727267688252,6.6524,150.33,150.29,6.6536]
[1727267690445,6.6524,150.32,150.28,6.6542]
[1727267694035,23.776884,150.34,150.27,23.5596217]
[1727267694237,7.8525664,150.33,150.29,6.6538]
[1727267694542,6.6521,150.33,150.29,6.6538]
[1727267694743,7.8525664,150.33,150.29,6.6538]
[1727267695741,6.6521,150.33,150.29,6.6538]
[1727267695941,1.2004664,150.32,150.27,23.5596217]
[1727267696143,7.8529664,150.32,150.28,6.6541]
[1727267696452,6.6525,150.32,150.28,6.6541]
[1727267699647,23.776884,150.34,150.29,1.3306624]
[1727267699954,6.6521,150.33,150.29,6.6537]
[1727267701049,1.2004664,150.32,150.27,41.05535534]
[1727267701251,6.653,150.31,150.27,41.05535534]
[1727267701461,1.2004664,150.32,150.27,41.05535534]
[1727267701462,6.6526,150.32,150.28,7.98486947]
[1727267701746,6.6526,150.32,150.28,6.6542]
[1727267701952,6.652,150.33,150.29,6.6536]
[1727267702155,6.652,150.33,150.29,17.49503364]
[1727267702353,6.6517,150.34,150.3,6.6533]
[1727267704752,13.60651091,150.35,150.31,7.98319441]
[1727267704950,13.60651091,150.35,150.31,6.6528]
[1727267705144,6.6512,150.35,150.31,6.6528]
[1727267710769,6.6512,150.35,150.29,27.47573364]
[1727267710978,6.6512,150.35,150.3,6.6531]
[1727267713348,21.2004664,150.37,150.3,6.6531]
[1727267713668,6.6519,150.34,150.3,6.6531]
[1727267714272,6.6523,150.33,150.29,34.12933364]
[1727267714483,7.8527664,150.33,150.29,34.12933364]
[1727267714776,6.6525,150.32,150.29,27.47573364]
[1727267715167,6.6525,150.32,150.29,16.6343]
[1727267716772,6.6531,150.31,150.27,13.5782217]
[1727267717164,6.6534,150.3,150.27,0.3143217]
[1727267718481,6.6534,150.3,150.27,11.15575534]
[1727267718867,6.653,150.31,150.27,17.81035534]
[1727267720168,6.6525,150.32,150.28,7.98475472]
[1727267720369,6.6525,150.32,150.28,6.6541]
[1727267725672,6.6525,150.32,150.28,13.1381]
[1727267734683,6.6532,150.31,150.28,6.484]
[1727267736083,6.6532,150.31,150.28,7.81465892]
[1727267736394,6.6532,150.31,150.28,6.484]
[1727267736593,6.6527,150.32,150.28,13.1379]
[1727267738985,6.6529,150.31,150.28,6.484]
[1727267744394,6.95132634,150.35,150.3,10.84143364]
[1727267744590,6.95132634,150.35,150.31,1.33036366]
[1727267744591,6.6516,150.34,150.31,1.33036366]
[1727267747274,6.6516,150.34,150.3,17.49463364]
[1727267749471,6.652,150.33,150.3,10.84143364]
[1727267749680,6.652,150.33,150.29,6.6536]
[1727267749972,23.776884,150.36,150.28,33.96083364]
[1727267750168,6.6527,150.32,150.28,40.61483364]
[1727267751588,6.652,150.33,150.29,6.6537]
[1727267760999,6.652,150.33,150.3,10.84143364]
[1727267761415,6.94970072,150.35,150.3,10.84143364]
[1727267761616,6.6518,150.34,150.3,17.49463364]
[1727267762730,13.60090072,150.35,150.32,10.84143364]
[1727267762896,6.6512,150.35,150.32,10.84143364]
[1727267766336,6.6519,150.34,150.3,39.6479]
[1727267766541,6.6512,150.35,150.31,6.6529]
[1727267766838,6.6516,150.34,150.3,50.48933364]
[1727267770617,23.776884,150.37,150.31,6.6529]
[1727267770618,6.6513,150.35,150.31,6.6529]
[1727267772945,1.2004664,150.36,150.3,43.83613364]
[1727267773319,6.6513,150.35,150.31,6.6529]
[1727267780252,6.6513,150.35,150.3,43.83613364]
[1727267780253,6.94814785,150.38,150.34,10.84143364]
[1727267780421,6.94814785,150.38,150.36,10.84143364]
[1727267780745,6.6485,150.41,150.37,7.97996843]
[1727267780942,6.6485,150.41,150.37,6.6502]
[1727267781149,6.6485,150.41,150.36,34.11813364]
[1727267781339,1.4427112,150.43,150.35,6.651]
[1727267781648,6.6494,150.39,150.35,6.651]
[1727267782115,6.649,150.4,150.34,10.84143364]
[1727267782441,6.649,150.4,150.36,6.6506]
[1727267782626,6.649,150.4,150.35,6.6508]
[1727267783141,6.649,150.4,150.35,10.84143364]
[1727267783332,6.649,150.4,150.36,6.6505]
[1727267784218,6.649,150.4,150.35,17.49253364]
[1727267784836,6.6494,150.39,150.35,17.49253364]
[1727267786447,6.6494,150.39,150.34,6.6515]
[1727267786654,6.6494,150.39,150.34,17.49293364]
[1727267787848,6.6494,150.39,150.34,6.6515]
[1727267788148,6.6494,150.39,150.34,17.49293364]
[1727267788747,6.6494,150.39,150.34,10.84143364]
[1727267788934,20.0,150.41,150.34,10.84143364]
[1727267789134,6.649,150.4,150.36,17.49203364]
[1727267790136,6.649,150.4,150.35,16.6273]
[1727267790339,6.6495,150.39,150.35,23.2783]
[1727267790654,6.6495,150.39,150.35,34.11973364]
[1727267790956,21.2004664,150.42,150.35,34.11973364]
[1727267791254,6.649,150.4,150.35,34.11973364]
[1727267791629,6.6495,150.39,150.35,34.11973364]
[1727267796353,6.6495,150.39,150.35,27.46873364]
[1727267797347,20.0,150.42,150.33,6.5035]
[1727267797348,6.6507,150.36,150.33,6.5035]
[1727267797669,6.6507,150.36,150.32,23.2826]
[1727267797670,6.6507,150.36,150.32,16.6303]
[1727267798237,6.6512,150.35,150.32,16.6303]
[1727267799458,6.6508,150.36,150.32,16.6303]
[1727267799768,6.6508,150.36,150.32,23.2827]
[1727267805767,6.6496,150.39,150.35,17.49223364]
[1727267805947,6.6496,150.39,150.36,12.17133719]
[1727267806746,6.6496,150.39,150.35,6.6508]
[1727267806943,6.6499,150.38,150.34,40.50283364]
[1727267807751,6.6499,150.38,150.34,33.85143364]
[1727267807947,6.6505,150.37,150.32,17.49373364]
[1727267808166,6.6505,150.37,150.33,6.652]
[1727267810181,6.6505,150.37,150.33,7.98212944]
[1727267810565,16.6216,150.41,150.34,1.33013607]
[1727267810762,6.6499,150.38,150.34,18.82306971]
[1727267812789,6.6499,150.38,150.34,17.49293364]
[1727267816587,6.6502,150.37,150.34,10.84143364]
[1727267817880,6.6502,150.37,150.33,23.2816]
[1727267819898,20.0,150.39,150.33,16.6298]
[1727267820068,6.6507,150.36,150.33,16.6298]
[1727267820466,1.2004664,150.38,150.3,6.2002]
[1727267820671,21.2004664,150.37,150.3,6.2002]
[1727267820878,6.6518,150.34,150.3,12.8535]
[1727267821096,6.652,150.33,150.3,6.2002]
[1727267821465,6.6517,150.34,150.3,12.8535]
[1727267821666,6.6517,150.34,150.31,1.33039689]
[1727267822169,6.6511,150.35,150.31,17.49423364]
[1727267824071,6.6508,150.36,150.31,17.49423364]
[1727267825874,6.6513,150.35,150.31,17.49423364]
[1727267826491,6.6513,150.35,150.31,6.6528]
[1727267826691,6.6513,150.35,150.31,17.49423364]
[1727267828498,6.94837656,150.37,150.33,10.84143364]
[1727267828675,13.59887656,150.37,150.33,10.84143364]
[1727267829375,6.6505,150.37,150.33,10.84143364]
[1727267831197,21.2004664,150.39,150.33,10.84143364]
[1727267831371,6.6508,150.36,150.33,10.84143364]
[1727267831571,6.6513,150.35,150.31,34.12603364]
[1727267833299,1.2004664,150.38,150.3,6.2002]
[1727267833601,6.6524,150.32,150.3,6.2002]
[1727267834483,17.8274664,150.36,150.3,6.2002]
[1727267834684,20.0,150.39,150.3,6.2002]
[1727267834685,20.0,150.39,150.3,17.04163364]
[1727267834880,6.6516,150.34,150.3,23.69463364]
[1727267835270,1.2004664,150.38,150.3,17.04163364]
[1727267835472,6.6511,150.35,150.31,6.6528]
[1727267835671,6.6508,150.36,150.32,17.49353364]
[1727267837896,6.6502,150.38,150.34,17.49293364]
[1727267838196,6.6502,150.38,150.29,15.8457]
[1727267838197,13.60154973,150.4,150.36,10.84143364]
[1727267838496,6.649,150.4,150.36,10.84143364]
[1727267839077,6.6494,150.39,150.36,10.84143364]
[1727267844612,6.649,150.4,150.36,17.49193364]
[1727267844798,26.6485,150.41,150.36,17.49193364]
[1727267845117,6.95414384,150.42,150.4,10.84143364]
[1727267845283,6.8899448,150.43,150.4,10.84143364]
[1727267847720,6.8899448,150.43,150.35,6.4652]
[1727267847721,6.6499,150.38,150.35,6.4652]
[1727267848004,43.776884,150.41,150.35,6.4652]
[1727267848211,43.776884,150.41,150.34,26.45563364]
[1727267848212,6.6506,150.37,150.34,10.84143364]
[1727267848585,6.6506,150.37,150.34,12.17153541]
[1727267849404,23.776884,150.41,150.34,18.82303541]
[1727267849405,6.6499,150.38,150.34,18.82303541]
[1727267850394,0.2422448,150.43,150.37,6.586]
[1727267850602,6.648,150.42,150.39,10.84143364]
[1727267851493,6.6486,150.41,150.39,10.84143364]
[1727267851693,6.6489,150.4,150.37,6.586]
[1727267851892,6.6489,150.4,150.38,10.84143364]
[1727267852112,6.6486,150.41,150.38,10.84143364]
[1727267854119,0.2422448,150.43,150.38,10.84143364]
[1727267854298,6.6481,150.42,150.38,10.84143364]
[1727267854803,6.6485,150.41,150.38,10.84143364]
[1727267855195,6.6494,150.39,150.36,10.84143364]
[1727267855394,6.6493,150.39,150.36,10.84143364]
[1727267856113,21.2004664,150.42,150.33,22.702]
[1727267856317,6.6498,150.38,150.35,10.84143364]
[1727267857821,6.6504,150.37,150.33,40.19533364]
[1727267858520,41.5989504,150.41,150.33,6.0727]
[1727267858719,41.5989504,150.41,150.32,15.6968]
[1727267858720,6.6511,150.35,150.32,15.6968]
[1727267858905,6.6511,150.35,150.31,17.49423364]
[1727267859105,6.6508,150.36,150.31,17.49423364]
[1727267860600,6.6512,150.35,150.31,17.49423364]
[1727267861420,16.6239,150.39,150.3,23.2857]
[1727267861627,6.6516,150.34,150.3,34.12713364]
[1727267865734,6.6516,150.34,150.3,27.47393364]
[1727267867312,1.2004664,150.33,150.29,6.0727]
[1727267867517,44.9773504,150.36,150.29,6.0727]
[1727267867912,6.6525,150.32,150.29,6.0727]
[1727267868520,44.9773504,150.36,150.29,16.91413364]
[1727267868720,6.6521,150.33,150.29,16.91413364]
[1727267869040,6.6521,150.33,150.29,6.0727]
[1727267869421,6.6521,150.33,150.29,16.91413364]
[1727267869626,6.6521,150.33,150.29,23.56773364]
[1727267869833,6.6521,150.33,150.3,1.33050138]
[1727267870226,50.084384,150.36,150.27,0.3143217]
[1727267870534,6.6533,150.3,150.27,0.3143217]
[1727267870730,6.6529,150.31,150.27,0.3143217]
[1727267871038,6.6516,150.34,150.3,17.49463364]
[1727267871240,6.6516,150.34,150.3,12.17186541]
[1727267871441,6.6516,150.34,150.3,10.84143364]
[1727267872815,6.6532,150.31,150.27,0.3143217]
[1727267873040,6.6532,150.31,150.27,11.15575534]
[1727267874436,1.2004664,150.32,150.27,11.15575534]
[1727267874752,50.431084,150.28,150.27,0.3143217]
[1727267875045,30.431084,150.28,150.27,0.3143217]
[1727267875553,6.6542,150.28,150.27,0.3143217]
[1727267876647,13.60462686,150.28,150.27,0.3143217]
[1727267877222,13.60462686,150.28,150.23,11.08367844]
[1727267877223,6.656,150.24,150.23,0.2422448]
[1727267878517,6.6556,150.25,150.23,0.2422448]
[1727267879023,6.6556,150.25,150.23,11.08367844]
[1727267879226,6.6556,150.25,150.23,0.2422448]
[1727267879433,7.8564664,150.24,150.23,0.2422448]
[1727267879645,6.656,150.24,150.23,0.2422448]
[1727267880753,66.580784,150.24,150.23,0.2422448]
[1727267881254,26.656,150.24,150.23,0.2422448]
[1727267882438,50.432884,150.24,150.23,0.2422448]
[1727267883947,27.8564664,150.24,150.23,0.2422448]
[1727267885047,26.656,150.24,150.23,0.2422448]
[1727267885361,51.6333504,150.24,150.23,0.2422448]
[1727267885737,51.6333504,150.24,150.18,0.3143217]
[1727267885738,30.435084,150.19,150.18,0.3143217]
[1727267886954,30.435084,150.19,150.18,11.15575534]
[1727267887255,83.2778,150.26,150.18,17.55565534]
[1727267887256,16.638,150.26,150.18,17.55565534]
[1727267887456,16.638,150.26,150.22,10.84143364]
[1727267887457,6.6564,150.23,150.22,10.84143364]
[1727267888461,16.2341,150.23,150.19,10.84143364]
[1727267888633,23.776884,150.21,150.19,10.84143364]
[1727267889033,1.2004664,150.2,150.19,10.84143364]
[1727267889946,31.6350504,150.2,150.19,10.84143364]
[1727267890562,30.434584,150.2,150.19,10.84143364]
[1727267890733,23.776884,150.2,150.19,10.84143364]
[1727267891134,1.2004664,150.21,150.19,10.84143364]
[1727267892351,23.776884,150.21,150.19,10.84143364]
[1727267893774,23.776884,150.22,150.19,10.84143364]
[1727267893949,23.776884,150.22,150.18,6.9725217]
[1727267893950,23.776884,150.22,150.21,10.84143364]
[1727267895362,16.2341,150.27,150.21,10.84143364]
[1727267895670,16.2341,150.27,150.18,16.9602217]
[1727267895671,26.6551,150.26,150.25,10.84143364]
[1727267896258,6.6551,150.26,150.25,10.84143364]
[1727267896852,30.431984,150.26,150.25,10.84143364]
[1727267897866,23.776884,150.26,150.25,10.84143364]
[1727267900651,30.432884,150.24,150.2,23.3013]
[1727267900864,1.2004664,150.23,150.2,34.14273364]
[1727267901068,1.2004664,150.23,150.22,10.84143364]
[1727267901265,24.9773504,150.23,150.22,10.84143364]
[1727267901781,23.776884,150.23,150.22,10.84143364]
[1727267901982,23.776884,150.23,150.21,6.6572]
[1727267902275,23.776884,150.23,150.22,10.84143364]
[1727267904081,23.776884,150.23,150.21,6.6572]
[1727267904261,23.776884,150.23,150.18,0.3143217]
[1727267904262,43.776884,150.22,150.18,0.3143217]
[1727267904578,30.434284,150.21,150.18,0.3143217]
[1727267905570,23.776884,150.21,150.18,0.3143217]
[1727267905858,23.776884,150.21,150.18,11.15575534]
[1727267906060,30.434284,150.21,150.18,0.3143217]
[1727267906380,6.6569,150.22,150.18,6.9727217]
[1727267906556,1.2004664,150.23,150.19,10.84143364]
[1727267906557,1.2004664,150.21,150.19,10.84143364]
[1727267907459,24.9773504,150.22,150.19,10.84143364]
[1727267908854,31.6342504,150.22,150.19,10.84143364]
[1727267909965,1.2004664,150.21,150.19,10.84143364]
[1727267910660,23.776884,150.22,150.19,10.84143364]
[1727267910860,23.776884,150.22,150.19,17.49953364]
[1727267911083,24.9773504,150.22,150.19,17.49953364]
[1727267912080,24.9773504,150.22,150.19,6.6581]
[1727267912281,24.9773504,150.22,150.18,0.3143217]
[1727267912483,23.776884,150.23,150.19,10.84143364]
[1727267912690,30.433584,150.23,150.19,10.84143364]
[1727267913189,1.2004664,150.22,150.19,10.84143364]
[1727267913369,6.6579,150.2,150.18,0.3143217]
[1727267913682,1.2004664,150.19,150.18,0.3143217]
[1727267913894,24.9773504,150.2,150.18,0.3143217]
[1727267914261,1.2004664,150.21,150.18,0.3143217]
[1727267914573,6.6569,150.22,150.18,6.9727217]
[1727267914769,1.2004664,150.21,150.18,6.9727217]
[1727267914982,1.2004664,150.21,150.19,10.84143364]
[1727267915661,6.6569,150.22,150.19,10.84143364]
[1727267919005,6.9577637,150.24,150.21,10.84143364]
[1727267919300,6.6552,150.26,150.23,10.84143364]
[1727267919486,1.2004664,150.25,150.23,10.84143364]
[1727267920601,7.8561664,150.25,150.21,17.49863364]
[1727267920780,1.2004664,150.24,150.21,17.49863364]
[1727267923086,21.2004664,150.27,150.21,10.84143364]
[1727267923289,30.431984,150.26,150.22,6.6568]
[1727267923499,31.6324504,150.26,150.22,6.6568]
[1727267927003,24.9773504,150.26,150.2,16.6441]
[1727267927393,6.6557,150.25,150.2,23.3014]
[1727267927718,1.2004664,150.24,150.2,23.3014]
[1727267928011,1.2004664,150.24,150.2,16.6441]
[1727267928218,1.2004664,150.24,150.21,6.6572]
[1727267929416,1.2004664,150.25,150.22,16.642]
[1727267930106,7.8563664,150.25,150.21,6.6572]
[1727267930283,7.8563664,150.25,150.19,33.73463364]
[1727267930606,30.433084,150.24,150.2,6.6576]
[1727267930807,1.2004664,150.23,150.2,6.6576]
[1727267932612,7.8568664,150.23,150.19,29.5513]
[1727267932815,23.776884,150.22,150.19,16.6447]
[1727267933128,1.2004664,150.21,150.19,16.6447]
[1727267933918,1.2004664,150.21,150.2,6.6577]
[1727267937010,1.2004664,150.21,150.19,16.6447]
[1727267937314,1.2004664,150.21,150.19,23.3029]
[1727267938807,23.776884,150.22,150.2,6.6577]
[1727267939011,1.2004664,150.21,150.2,6.6577]
[1727267939208,24.9773504,150.21,150.2,6.6577]
[1727267939713,1.2004664,150.21,150.19,27.48613364]
[1727267940016,1.2004664,150.21,150.19,34.14413364]
[1727267940202,1.2004664,150.21,150.2,6.6577]
[1727267940713,23.776884,150.2,150.19,16.6447]
[1727267941316,23.776884,150.2,150.19,23.3029]
[1727267943029,6.6564,150.23,150.19,34.14413364]
[1727267943202,23.776884,150.21,150.19,16.6447]
[1727267943391,23.776884,150.2,150.19,23.3029]
[1727267943715,6.6577,150.21,150.18,0.3143217]
[1727267943916,23.776884,150.19,150.18,6.9729217]
[1727267944105,24.9773504,150.21,150.18,6.9729217]
[1727267944302,24.9773504,150.21,150.18,0.3143217]
[1727267944618,15.1219,150.26,150.19,10.84143364]
[1727267944821,7.8561664,150.25,150.21,10.84143364]
[1727267945200,6.6557,150.25,150.21,6.6573]
[1727267945531,6.959199,150.27,150.22,16.6417]
[1727267945698,15.4712,150.3,150.23,6.6564]
[1727267946024,8.16552516,150.29,150.21,10.84143364]
[1727267947014,6.6553,150.26,150.2,6.6576]
[1727267947336,23.776884,150.24,150.2,17.49903364]
[1727267947510,1.2004664,150.23,150.2,17.49903364]
[1727267948326,1.2004664,150.23,150.22,10.84143364]
[1727267948516,1.2004664,150.23,150.2,17.49903364]
[1727267948925,1.2004664,150.23,150.2,6.6576]
[1727267949124,1.2004664,150.23,150.2,17.49903364]
[1727267951414,1.2004664,150.23,150.21,6.6573]
[1727267956144,1.2004664,150.23,150.22,10.84143364]
[1727267956350,24.9773504,150.23,150.22,10.84143364]
[1727267956761,1.2004664,150.23,150.21,6.6573]
[1727267957256,23.776884,150.22,150.19,34.14493364]
[1727267957566,24.9773504,150.21,150.2,6.6577]
[1727267958155,23.776884,150.21,150.2,6.6577]
[1727267959361,6.6557,150.25,150.2,6.6577]
[1727267959763,23.776884,150.24,150.21,6.6573]
[1727267960670,1.2004664,150.24,150.23,6.6563]
[1727267960968,1.2004664,150.25,150.24,6.656]
[1727267961339,1.2004664,150.26,150.24,6.656]
[1727267961966,13.61834791,150.29,150.25,6.6555]
[1727267962472,21.2004664,150.28,150.2,16.644]
[1727267962769,20.0,150.24,150.2,34.14303364]
[1727267963760,21.2004664,150.24,150.2,34.14303364]
[1727267966246,21.2004664,150.24,150.22,10.84143364]
[1727267966857,21.2004664,150.24,150.2,34.14303364]
[1727267968778,1.2004664,150.24,150.2,34.14303364]
[1727267969074,7.8564664,150.24,150.2,34.14303364]
[1727267971675,7.8564664,150.24,150.2,23.3016]
[1727267971881,7.8564664,150.24,150.21,10.84143364]
[1727267972067,6.656,150.24,150.21,10.84143364]
[1727267973881,1.2004664,150.23,150.21,10.84143364]
[1727267977858,6.656,150.24,150.21,10.84143364]
[1727267978794,6.6564,150.23,150.21,10.84143364]
[1727267980856,30.432984,150.24,150.21,10.84143364]
[1727267981280,20.0,150.25,150.23,10.84143364]
[1727267981491,21.2004664,150.25,150.23,10.84143364]
[1727267982185,1.2004664,150.25,150.23,10.84143364]
[1727267982479,6.6548,150.27,150.23,10.84143364]
[1727267982686,1.2004664,150.26,150.23,10.84143364]
[1727267983686,21.2004664,150.26,150.23,10.84143364]
[1727267984186,1.2004664,150.26,150.23,10.84143364]
[1727267984384,6.6552,150.26,150.23,10.84143364]
[1727267984769,1.2004664,150.27,150.23,10.84143364]
[1727267985082,7.8552664,150.27,150.23,17.49783364]
[1727267985272,1.2004664,150.26,150.23,17.49783364]
[1727267986171,1.2004664,150.26,150.25,10.84143364]
[1727267986483,6.6528,150.32,150.27,6.6546]
[1727267986688,6.6525,150.32,150.27,6.6546]
[1727267986888,6.6525,150.32,150.29,10.84143364]
[1727267987192,1.2004664,150.31,150.29,10.84143364]
[1727267987688,6.6524,150.32,150.29,10.84143364]
[1727267987869,1.2004664,150.31,150.29,10.84143364]
[1727267988070,7.8535664,150.31,150.29,10.84143364]
[1727267988292,6.6531,150.31,150.29,10.84143364]
[1727267988479,6.6531,150.31,150.27,34.13223364]
[1727267989278,7.20468424,150.34,150.29,10.84143364]
[1727267989482,20.0,150.33,150.29,17.49513364]
[1727267989703,26.6521,150.33,150.29,17.49513364]
[1727267989996,20.0,150.33,150.29,10.84143364]
[1727267990201,6.6525,150.32,150.29,10.84143364]
[1727267992683,7.8525664,150.33,150.29,10.84143364]
[1727267992992,1.2004664,150.33,150.29,10.84143364]
[1727267993186,6.6527,150.32,150.29,10.84143364]
[1727267995872,1.2004664,150.31,150.27,27.47763364]
[1727267996075,7.8536664,150.31,150.27,16.6362]
[1727267996295,1.2004664,150.3,150.27,16.6362]
[1727267996996,1.2004664,150.3,150.27,23.2907]
[1727268000503,6.6539,150.29,150.26,6.1482]
[1727268000689,1.2004664,150.28,150.25,6.6554]
[1727268000882,6.6539,150.29,150.25,6.6554]
[1727268000883,6.6539,150.29,150.25,17.49683364]
[1727268001283,1.2004664,150.28,150.25,17.49683364]
[1727268003205,7.8550664,150.28,150.25,10.84143364]
[1727268003409,1.2004664,150.27,150.25,10.84143364]
[1727268004195,1.2004664,150.27,150.24,23.2955]
[1727268006190,7.8552664,150.27,150.24,16.6396]
[1727268006391,6.6548,150.27,150.25,10.84143364]
[1727268006602,6.6543,150.28,150.25,10.84143364]
[1727268006789,1.2004664,150.27,150.25,10.84143364]
[1727268006984,7.8552664,150.27,150.25,10.84143364]
[1727268007185,1.2004664,150.27,150.25,10.84143364]
[1727268009391,7.8550664,150.27,150.24,16.6396]
[1727268009591,1.2004664,150.26,150.24,27.48103364]
[1727268011896,1.2004664,150.26,150.24,10.84143364]
[1727268015617,1.2004664,150.27,150.24,17.49703364]
[1727268015791,7.8546664,150.28,150.26,10.84143364]
[1727268016909,1.2004664,150.27,150.26,10.84143364]
[1727268018219,24.9773504,150.28,150.26,10.84143364]
[1727268018401,31.6315504,150.28,150.26,10.84143364]
[1727268022339,6.6554,150.26,150.2,23.1775]
[1727268022521,7.8558664,150.26,150.24,10.84143364]
[1727268022722,1.2004664,150.26,150.24,10.84143364]
[1727268024443,1.2004664,150.27,150.25,6.6555]
[1727268024742,6.6534,150.3,150.24,16.6396]
[1727268024919,1.2004664,150.29,150.26,17.49633364]
[1727268025117,13.61538281,150.32,150.28,17.49553364]
[1727268025452,1.2004664,150.31,150.3,10.84143364]
[1727268025824,6.6521,150.33,150.3,10.84143364]
[1727268026145,7.8529664,150.32,150.3,10.84143364]
[1727268027013,1.2004664,150.31,150.3,10.84143364]
[1727268027844,7.8533664,150.31,150.3,10.84143364]
[1727268028051,6.6529,150.31,150.3,10.84143364]
[1727268029450,23.776884,150.33,150.3,10.84143364]
[1727268029746,7.8529664,150.32,150.3,10.84143364]
[1727268036646,1.2004664,150.32,150.3,10.84143364]
[1727268038554,30.428984,150.33,150.3,10.84143364]
[1727268039555,1.2004664,150.32,150.3,10.84143364]
[1727268048004,7.8531664,150.32,150.28,34.13093364]
[1727268049376,20.2422448,150.34,150.28,16.6354]
[1727268049582,7.8525664,150.33,150.29,17.49513364]
[1727268050456,7.8525664,150.33,150.29,6.6537]
[1727268050652,23.776884,150.32,150.29,17.49513364]
[1727268050887,1.2004664,150.31,150.29,17.49513364]
[1727268051892,24.9773504,150.32,150.29,17.49513364]
[1727268052189,6.6521,150.33,150.29,17.49513364]
[1727268052190,26.8941448,150.34,150.3,6.6532]
[1727268052660,1.2004664,150.33,150.3,6.6532]
[1727268054170,6.652,150.33,150.3,6.6532]
[1727268054489,21.4427112,150.34,150.3,6.6532]
[1727268054690,28.0943112,150.34,150.3,6.6532]
[1727268056091,30.429184,150.33,150.29,6.6537]
[1727268056288,1.2004664,150.32,150.29,17.49513364]
[1727268057997,1.2004664,150.32,150.29,6.6537]
[1727268059701,6.6521,150.33,150.29,6.6537]
[1727268059702,7.8525664,150.33,150.29,6.6537]
[1727268060197,1.2004664,150.33,150.28,27.47683364]
[1727268060503,1.2004664,150.33,150.3,6.6532]
[1727268061079,1.2004664,150.33,150.28,27.47683364]
[1727268061291,6.6526,150.32,150.28,34.13073364]